fUSD/lending_fUSD_20260208
["ID","MTS","AMOUNT","RATE_DAILY","PERIOD"]
[404803021,1770577854667,-500.0,0.00043835,120]
[404803022,1770577854681,-500.0,0.00043835,120]
[404803023,1770577854692,-500.0,0.00043835,120]
[404803024,1770577854703,-639.86957073,0.00043835,120]
[404803025,1770577854715,-500.0,0.00043835,120]
[404803026,1770577854726,-500.0,0.00043835,120]
[404803027,1770577854736,-500.0,0.00043835,120]
[404803028,1770577854747,-308.14964406,0.00043835,120]
[404803029,1770577854758,-505.97748896,0.00043835,120]
[404803030,1770577854769,-628.60803134,0.00043835,120]
[404803031,1770577854779,-500.0,0.00043835,120]
[404803032,1770577854790,-514.93149443,0.00043835,120]
[404803033,1770577854802,-603.18402753,0.00043835,120]
[404803034,1770577854814,-500.0,0.00043835,120]
[404803035,1770577854824,-500.0,0.00043835,120]
[404803036,1770577854835,-368.9451958,0.00043835,120]
[404803037,1770577854847,-629.36447768,0.00043835,120]
[404803038,1770577854859,-500.0,0.00043835,120]
[404803039,1770577854871,-233.08419558,0.00043835,120]
[404803040,1770577854882,-500.0,0.00043835,120]
[404803041,1770577854894,-500.0,0.00043835,120]
[404803042,1770577854905,-500.0,0.00043835,120]
[404803043,1770577854916,-500.0,0.00043835,120]
[404803044,1770577854926,-291.96120471,0.00043835,120]
[404803045,1770577854937,-500.0,0.00043835,120]
[404803046,1770577854947,-500.0,0.00043835,120]
[404803047,1770577854958,-500.0,0.00043835,120]
[404803048,1770577854969,-519.07541099,0.00043835,120]
[404803049,1770577854980,-500.0,0.00043835,120]
[404803050,1770577854990,-500.0,0.00043835,120]
[404803051,1770577855001,-518.43376726,0.00043835,120]
[404803052,1770577855011,-500.0,0.00043835,120]
[404803053,1770577855022,-403.83140366,0.00043835,120]
[404803054,1770577855032,-500.0,0.00043835,120]
[404803055,1770577855043,-511.55912654,0.00043835,120]
[404803056,1770577855054,-500.0,0.00043835,120]
[404803057,1770577855064,-500.0,0.00043835,120]
[404803058,1770577855076,-500.0,0.00043835,120]
[404803059,1770577855088,-534.94518937,0.00043835,120]
[404803060,1770577855099,-500.0,0.00043835,120]
[404803061,1770577855111,-500.0,0.00043835,120]
[404803062,1770577855122,-500.0,0.00043835,120]
[404803063,1770577855133,-500.0,0.00043835,120]
[404803064,1770577855145,-500.0,0.00043835,120]
[404803065,1770577855155,-648.78849303,0.00043835,120]
[404803066,1770577855165,-500.0,0.00043835,120]
[404803067,1770577855176,-232.78555384,0.00043835,120]
[404803068,1770577855186,-500.0,0.00043835,120]
[404803069,1770577855199,-500.0,0.00043835,120]
[404803070,1770577855211,-500.0,0.00043835,120]
[404803071,1770577855221,-500.0,0.00043835,120]
[404803072,1770577855231,-500.0,0.00043835,120]
[404803073,1770577855241,-500.0,0.00043835,120]
[404803074,1770577855252,-500.0,0.00043835,120]
[404803075,1770577855262,-500.0,0.00043835,120]
[404803076,1770577855272,-500.0,0.00043835,120]
[404803077,1770577855282,-500.0,0.00043835,120]
[404803078,1770577855292,-500.0,0.00043835,120]
[404803079,1770577855302,-500.0,0.00043835,120]
[404803080,1770577855312,-500.0,0.00043835,120]
[404803081,1770577855323,-500.0,0.00043835,120]
[404803082,1770577855333,-500.0,0.00043835,120]
[404803083,1770577855343,-500.0,0.00043835,120]
[404803084,1770577855354,-500.0,0.00043835,120]
[404803085,1770577855366,-500.0,0.00043835,120]
[404803086,1770577855377,-500.0,0.00043835,120]
[404803087,1770577855388,-500.0,0.00043835,120]
[404803088,1770577855399,-500.0,0.00043835,120]
[404803089,1770577855410,-500.0,0.00043835,120]
[404803090,1770577855421,-515.57399005,0.00043835,120]
[404803091,1770577855431,-500.0,0.00043835,120]
[404803092,1770577855441,-593.1803373,0.00043835,120]
[404803093,1770577855452,-500.0,0.00043835,120]
[404803094,1770577855462,-500.0,0.00043835,120]
[404803095,1770577855472,-500.0,0.00043835,120]
[404803096,1770577855483,-532.48707506,0.00043835,120]
[404803097,1770577855494,-413.30027943,0.00043835,120]
[404803098,1770577855504,-500.0,0.00043835,120]
[404803099,1770577855515,-500.0,0.00043835,120]
[404803100,1770577855527,-500.0,0.00043835,120]
[404803101,1770577855538,-159.30168203,0.00043835,120]
[404803102,1770577855548,-284.3852292,0.00043835,120]
[404803103,1770577855559,-500.0,0.00043835,120]
[404803104,1770577855571,-396.65196312,0.00043835,120]
[404803105,1770577855581,-500.0,0.00043835,120]
[404803106,1770577855591,-500.0,0.00043835,120]
[404803107,1770577855601,-500.0,0.00043835,120]
[404803108,1770577855611,-229.57752344,0.00043835,120]
[404803109,1770577855622,-500.0,0.00043835,120]
[404803110,1770577855633,-500.0,0.00043835,120]
[404803111,1770577855644,-500.0,0.00043835,120]
[404803112,1770577855655,-500.0,0.00043835,120]
[404803113,1770577855667,-500.0,0.00043835,120]
[404803114,1770577855680,-500.0,0.00043835,120]
[404803115,1770577855692,-500.0,0.00043835,120]
[404803116,1770577855702,-500.0,0.00043835,120]
[404803117,1770577855714,-500.0,0.00043835,120]
[404803118,1770577855725,-513.85706987,0.00043835,120]
[404803119,1770577855736,-500.0,0.00043835,120]
[404803120,1770577855748,-500.0,0.00043835,120]
[404803121,1770577855758,-500.0,0.00043835,120]
[404803122,1770577855768,-500.0,0.00043835,120]
[404803123,1770577855778,-266.87008558,0.00043835,120]
[404803124,1770577855789,-388.63702032,0.00043835,120]
[404803125,1770577855799,-500.0,0.00043835,120]
[404803126,1770577856047,-500.0,0.00043835,120]
[404803127,1770577856065,-500.0,0.00043835,120]
[404803128,1770577856080,-290.86944407,0.00043835,120]
[404803129,1770577856090,-500.0,0.00043835,120]
[404803130,1770577856099,-500.0,0.00043835,120]
[404803131,1770577856109,-500.0,0.00043835,120]
[404803132,1770577856118,-500.0,0.00043835,120]
[404803133,1770577856127,-500.0,0.00043835,120]
[404803134,1770577856136,-500.0,0.00043835,120]
[404803135,1770577856145,-500.0,0.00043835,120]
[404803136,1770577856155,-500.0,0.00043835,120]
[404803137,1770577856164,-512.13735667,0.00043835,120]
[404803138,1770577856174,-575.2849,0.00043835,120]
[404803139,1770577856183,-422.4432999,0.00043835,120]
[404803140,1770577856192,-500.0,0.00043835,120]
[404803141,1770577856202,-500.0,0.00043835,120]
[404803142,1770577856212,-537.6012494,0.00043835,120]
[404803143,1770577856222,-542.43627848,0.00043835,120]
[404803144,1770577856231,-511.55298531,0.00043835,120]
[404803145,1770577856242,-500.0,0.00043835,120]
[404803146,1770577856252,-500.0,0.00043835,120]
[404803147,1770577856263,-292.25666066,0.00043835,120]
[404803148,1770577856273,-500.0,0.00043835,120]
[404803149,1770577856282,-500.0,0.00043835,120]
[404803150,1770577856293,-625.66336267,0.00043835,120]
[404803151,1770577856306,-312.94720447,0.00043835,120]
[404803152,1770577856316,-500.0,0.00043835,120]
[404803153,1770577856326,-500.0,0.00043835,120]
[404803154,1770577856337,-500.0,0.00043835,120]
[404803155,1770577856347,-500.0,0.00043835,120]
[404803156,1770577856357,-203.85438539,0.00043835,120]
[404803157,1770577856368,-515.36796699,0.00043835,120]
[404803158,1770577856378,-500.0,0.00043835,120]
[404803159,1770577856387,-500.0,0.00043835,120]
[404803160,1770577856397,-306.51409336,0.00043835,120]
[404803161,1770577856408,-208.00206938,0.00043835,120]
[404803162,1770577856418,-631.1560404,0.00043835,120]
[404803163,1770577856428,-155.39755215,0.00043835,120]
[404803164,1770577856437,-500.0,0.00043835,120]
[404803165,1770577856448,-157.62691,0.00043835,120]
[404803166,1770577856459,-524.55130583,0.00043835,120]
[404803167,1770577856469,-500.0,0.00043835,120]
[404803168,1770577856479,-253.28994423,0.00043835,120]
[404803169,1770577856489,-500.0,0.00043835,120]
[404803170,1770577856499,-530.79704686,0.00043835,120]
[404803171,1770577856508,-500.0,0.00043835,120]
[404803172,1770577856520,-176.80840032,0.00043835,120]
[404803173,1770577856529,-526.00668681,0.00043835,120]
[404803174,1770577856539,-196.36745353,0.00043835,120]
[404803175,1770577856549,-500.0,0.00043835,120]
[404803176,1770577856560,-604.13045611,0.00043835,120]
[404803177,1770577856569,-500.0,0.00043835,120]
[404803178,1770577856579,-191.08972978,0.00043835,120]
[404803179,1770577856588,-500.0,0.00043835,120]
[404803180,1770577856597,-500.0,0.00043835,120]
[404803181,1770577856607,-540.30529125,0.00043835,120]
[404803182,1770577856616,-500.0,0.00043835,120]
[404803183,1770577856626,-500.0,0.00043835,120]
[404803184,1770577856635,-500.0,0.00043835,120]
[404803185,1770577856645,-500.0,0.00043835,120]
[404803186,1770577856654,-500.0,0.00043835,120]
[404803187,1770577856664,-500.0,0.00043835,120]
[404803188,1770577856674,-544.29198745,0.00043835,120]
[404803189,1770577856686,-500.0,0.00043835,120]
[404803190,1770577856695,-500.0,0.00043835,120]
[404803191,1770577856705,-435.72047607,0.00043835,120]
[404803192,1770577856715,-500.0,0.00043835,120]
[404803193,1770577856726,-500.0,0.00043835,120]
[404803194,1770577856736,-500.0,0.00043835,120]
[404803195,1770577856746,-446.34121915,0.00043835,120]
[404803196,1770577856755,-542.02836704,0.00043835,120]
[404803197,1770577856766,-500.0,0.00043835,2]
[404803198,1770577856775,-500.0,0.00043835,120]
[404803199,1770577856785,-500.0,0.00043835,2]
[404803200,1770577856795,-500.0,0.00043835,120]
[404803201,1770577856804,-500.0,0.00043835,120]
[404803202,1770577856814,-500.0,0.00043835,2]
[404803203,1770577856824,-232.05409517,0.00043835,120]
[404803204,1770577856833,-488.67561774,0.00043835,120]
[404803205,1770577856843,-500.0,0.00043835,120]
[404803206,1770577856852,-500.0,0.00043835,2]
[404803207,1770577856862,-527.3580023,0.00043835,120]
[404803208,1770577856871,-511.57938372,0.00043835,120]
[404803209,1770577856881,-500.0,0.00043835,2]
[404803210,1770577856891,-500.0,0.00043835,2]
[404803211,1770577856900,-500.0,0.00043835,120]
[404803212,1770577856909,-500.0,0.00043835,2]
[404803213,1770577856918,-500.0,0.00043835,120]
[404803214,1770577856928,-216.46652126,0.00043835,120]
[404803215,1770577856937,-500.0,0.00043835,120]
[404803216,1770577856947,-235.12786398,0.00043835,120]
[404803217,1770577856956,-528.41828337,0.00043835,120]
[404803218,1770577856966,-500.0,0.00043835,60]
[404803219,1770577856976,-509.09531564,0.00043835,120]
[404803220,1770577856986,-500.0,0.00043835,60]
[404803221,1770577856995,-551.19137094,0.00043835,120]
[404803222,1770577857004,-500.0,0.00043835,60]
[404803223,1770577857014,-555.38557599,0.00043835,60]
[404803224,1770577857023,-311.55175678,0.00043835,120]
[404803225,1770577857033,-500.0,0.00043835,120]
[404803226,1770577857042,-500.0,0.00043835,120]
[404803227,1770577857051,-500.0,0.00043835,120]
[404803228,1770577857061,-500.0,0.00043835,120]
[404803229,1770577857070,-500.0,0.00043835,120]
[404803230,1770577857080,-500.0,0.00043835,120]
[404803231,1770577857089,-500.0,0.00043835,120]
[404803232,1770577857098,-500.0,0.00043835,120]
[404803233,1770577857107,-500.0,0.00043835,120]
[404803234,1770577857116,-500.0,0.00043835,120]
[404803235,1770577857125,-500.0,0.00043835,120]
[404803236,1770577857135,-1000.0,0.00043835,120]
[404803237,1770577857144,-234.45076428,0.00043835,120]
[404803238,1770577857154,-500.0,0.00043835,120]
[404803239,1770577857163,-1000.0,0.00043835,120]
[404803240,1770577857172,-169.2028659,0.00043835,120]
[404803241,1770577857181,-197.93378283,0.00043835,120]
[404803242,1770577857190,-1000.0,0.00043835,120]
[404803243,1770577857199,-1000.0,0.00043835,120]
[404803244,1770577857208,-500.0,0.00043835,120]
[404803245,1770577857217,-1147.60406338,0.00043835,120]
[404803246,1770577857227,-500.0,0.00043835,120]
[404803247,1770577857235,-500.0,0.00043835,2]
[404803248,1770577857244,-500.0,0.00043835,2]
[404803249,1770577857254,-500.0,0.00043835,120]
[404803250,1770577857263,-326.32563819,0.00043835,120]
[404803251,1770577857272,-162.06284473,0.00043835,2]
[404803252,1770577857281,-171.01584892,0.00043835,120]
[404803253,1770577857290,-500.0,0.00043835,120]
[404803254,1770577857299,-500.0,0.00043835,120]
[404803255,1770577857308,-500.0,0.00043835,120]
[404803256,1770577857318,-500.0,0.00043835,120]
[404803257,1770577857326,-500.0,0.00043835,120]
[404803258,1770577857336,-500.0,0.00043835,120]
[404803259,1770577857345,-500.0,0.00043835,120]
[404803260,1770577857355,-500.0,0.00043835,120]
[404803261,1770577857364,-388.87053539,0.00043835,120]
[404803262,1770577857373,-500.0,0.00043835,120]
[404803263,1770577857383,-500.0,0.00043835,120]
[404803264,1770577857392,-518.10471303,0.00043835,120]
[404803265,1770577857401,-500.0,0.00043835,120]
[404803266,1770577857411,-500.0,0.00043835,120]
[404803267,1770577857420,-500.0,0.00043835,120]
[404803268,1770577857430,-500.0,0.00043835,120]
[404803269,1770577857440,-544.50111106,0.00043835,120]
[404803270,1770577857449,-561.23969575,0.00043835,120]
[404803271,1770577857459,-500.0,0.00043835,120]
[404803272,1770577857470,-500.0,0.00043835,120]
[404803273,1770577857479,-500.0,0.00043835,120]
[404803274,1770577857488,-500.0,0.00043835,120]
[404803275,1770577857497,-500.0,0.00043835,120]
[404803276,1770577857506,-500.0,0.00043835,120]
[404803277,1770577857515,-500.0,0.00043835,120]
[404803278,1770577857524,-500.0,0.00043835,120]
[404803279,1770577857533,-500.0,0.00043835,120]
[404803280,1770577857542,-164.78930235,0.00043835,120]
[404803281,1770577857552,-391.02250849,0.00043835,120]
[404803282,1770577857561,-500.0,0.00043835,120]
[404803283,1770577857571,-500.0,0.00043835,120]
[404803284,1770577857580,-500.0,0.00043835,120]
[404803285,1770577857589,-500.0,0.00043835,120]
[404803286,1770577857599,-500.0,0.00043835,120]
[404803287,1770577857609,-503.92733061,0.00043835,120]
[404803288,1770577857618,-181.71051896,0.00043835,120]
[404803289,1770577857627,-511.3673236,0.00043835,120]
[404803290,1770577857637,-169.41730087,0.00043835,120]
[404803291,1770577857646,-500.0,0.00043835,120]
[404803292,1770577857657,-500.0,0.00043835,120]
[404803293,1770577857667,-500.0,0.00043835,120]
[404803294,1770577857677,-500.0,0.00043835,120]
[404803295,1770577857688,-500.0,0.00043835,120]
[404803296,1770577857698,-500.0,0.00043835,120]
[404803297,1770577857707,-500.0,0.00043835,120]
[404803298,1770577857716,-519.15612258,0.00043835,120]
[404803299,1770577857727,-500.0,0.00043835,120]
[404803300,1770577857736,-500.0,0.00043835,120]
[404803301,1770577857745,-500.0,0.00043835,2]
[404803302,1770577857755,-500.0,0.00043835,2]
[404803303,1770577857764,-500.0,0.00043835,2]
[404803304,1770577857773,-500.0,0.00043835,28]
[404803305,1770577857782,-500.0,0.00043835,2]
[404803306,1770577857791,-500.0,0.00043835,28]
[404803307,1770577857801,-501.5922851,0.00043835,120]
[404803308,1770577857810,-500.0,0.00043835,2]
[404803309,1770577857819,-500.0,0.00043835,28]
[404803310,1770577857828,-500.0,0.00043835,120]
[404803311,1770577857837,-500.0,0.00043835,2]
[404803312,1770577857846,-595.56075379,0.00043835,28]
[404803313,1770577857855,-500.0,0.00043835,120]
[404803314,1770577857864,-500.0,0.00043835,2]
[404803315,1770577857873,-500.0,0.00043835,120]
[404803316,1770577857882,-500.0,0.00043835,120]
[404803317,1770577857891,-243.49859148,0.00043835,120]
[404803318,1770577857900,-500.0,0.00043835,120]
[404803319,1770577857910,-500.0,0.00043835,120]
[404803320,1770577857919,-523.28522367,0.00043835,120]
[404803321,1770577857928,-339.51953535,0.00043835,120]
[404803322,1770577857937,-512.31438892,0.00043835,120]
[404803323,1770577857945,-500.0,0.00043835,120]
[404803324,1770577857955,-222.0802932,0.00043835,120]
[404803325,1770577857964,-500.0,0.00043835,120]
[404803326,1770577857974,-500.0,0.00043835,120]
[404803327,1770577857983,-500.0,0.00043835,120]
[404803328,1770577857993,-500.0,0.00043835,120]
[404803329,1770577858002,-500.0,0.00043835,120]
[404803330,1770577858011,-500.0,0.00043835,120]
[404803331,1770577858021,-559.27188841,0.00043835,120]
[404803332,1770577858030,-471.42607274,0.00043835,120]
[404803333,1770577858039,-500.0,0.00043835,120]
[404803334,1770577858048,-500.0,0.00043835,120]
[404803335,1770577858058,-574.10159401,0.00043835,120]
[404803336,1770577858067,-500.0,0.00043835,120]
[404803337,1770577858076,-500.0,0.00043835,120]
[404803338,1770577858085,-500.0,0.00043835,120]
[404803339,1770577858094,-500.0,0.00043835,120]
[404803340,1770577858103,-500.0,0.00043835,120]
[404803341,1770577858112,-500.0,0.00043835,120]
[404803342,1770577858121,-500.0,0.00043835,120]
[404803343,1770577858130,-625.22213016,0.00043835,120]
[404803344,1770577858139,-511.15217907,0.00043835,120]
[404803345,1770577858148,-500.0,0.00043835,120]
[404803346,1770577858158,-500.0,0.00043835,120]
[404803347,1770577858172,-163.58893741,0.00043836,5]
[404803348,1770577858182,-150.0,0.00043837,30]
[404803349,1770577858192,-500.0,0.00043843,2]
[404803350,1770577858201,-2699.0,0.00043844,16]
[404803351,1770577858210,-840.0,0.00043847,16]
[404803352,1770577858219,-150.0,0.00043873,10]
[404803353,1770577858228,-150.0,0.0004389,30]
[404803354,1770577858238,-151.0,0.000439,120]
[404803355,1770577858247,-500.0,0.00043901,2]
[404803356,1770577858256,-424.57,0.00043902,2]
[404803357,1770577858265,-500.0,0.00043902,120]
[404803358,1770577858274,-1118.28,0.00043902,120]
[404803359,1770577858285,-500.0,0.00043902,60]
[404803360,1770577858294,-609.77,0.00043902,120]
[404803361,1770577858303,-573.29,0.00043902,120]
[404803362,1770577858312,-500.0,0.00043902,120]
[404803363,1770577858321,-1661.2,0.00043902,120]
[404803364,1770577858330,-500.0,0.00043902,120]
[404803365,1770577858340,-8661.0,0.00043903,7]
[404803366,1770577858350,-188.3329543,0.0004394,120]
[404803367,1770577858359,-150.0,0.00043943,30]
[404803368,1770577858367,-150.0,0.00043943,30]
[404803369,1770577858377,-10020.04,0.00043945,120]
[404803370,1770577858386,-200.0,0.00043949,2]
[404803371,1770577858396,-265.06963232,0.0004396,8]
[404803372,1770577858405,-770.5642197,0.00043967,28]
[404803373,1770577858414,-150.0,0.00043982,30]
[404803374,1770577858424,-200.0,0.00043992,2]
[404803375,1770577858433,-150.0,0.00043999,30]
[404803376,1770577858442,-150.0,0.00043999,30]
[404803377,1770577858452,-1000.0,0.00043999,120]
[404803378,1770577858462,-153.0,0.00044,120]
[404803379,1770577858471,-737.3113,0.00044,90]
[404803380,1770577858480,-500.0,0.00044,120]
[404803381,1770577858489,-150.0,0.00044038,30]
[404803382,1770577858499,-150.0,0.00044048,30]
[404803383,1770577858508,-1000.0,0.00044099,120]
[404803384,1770577858518,-150.0,0.000441,2]
[404803385,1770577858527,-424.57,0.00044108,2]
[404803386,1770577858536,-500.0,0.00044108,120]
[404803387,1770577858545,-1118.28,0.00044108,120]
[404803388,1770577858555,-500.0,0.00044108,60]
[404803389,1770577858564,-609.77,0.00044108,120]
[404803390,1770577858573,-573.29,0.00044108,120]
[404803391,1770577858582,-652.43,0.00044108,120]
[404803392,1770577858591,-652.43,0.00044108,120]
[404803393,1770577858600,-652.43,0.00044108,120]
[404803394,1770577858610,-652.43,0.00044108,120]
[404803395,1770577858619,-652.43033522,0.00044108,120]
[404803396,1770577858628,-500.0,0.00044108,120]
[404803397,1770577858638,-1661.2,0.00044108,120]
[404803398,1770577858647,-923.91,0.00044108,120]
[404803399,1770577858657,-923.91,0.00044108,120]
[404803400,1770577858667,-923.91,0.00044108,120]
[404803401,1770577858680,-923.91,0.00044108,120]
[404803402,1770577858690,-923.96579988,0.00044108,120]
[404803403,1770577858699,-500.0,0.00044108,60]
[404803404,1770577858708,-179.44041925,0.00044108,60]
[404803405,1770577858721,-500.0,0.00044108,120]
[404803406,1770577858731,-500.0,0.00044108,2]
[404803407,1770577858741,-500.0,0.00044108,2]
[404803408,1770577858752,-151.0,0.00044109,120]
[404803409,1770577858761,-151.0,0.00044109,120]
[404803410,1770577858771,-151.0,0.00044109,120]
[404803411,1770577858781,-151.0,0.00044109,120]
[404803412,1770577858790,-151.0,0.00044109,120]
[404803413,1770577858800,-151.0,0.00044109,120]
[404803414,1770577858809,-151.0,0.00044109,120]
[404803415,1770577858819,-151.0,0.00044109,120]
[404803416,1770577858828,-151.0,0.00044109,120]
[404803417,1770577858837,-190.590149,0.00044109,120]
[404803418,1770577858847,-185.192251,0.00044109,120]
[404803419,1770577858856,-190.590149,0.00044109,120]
[404803420,1770577858865,-190.590149,0.00044109,120]
[404803421,1770577858875,-190.590149,0.00044109,120]
[404803422,1770577858884,-306.468837,0.00044109,120]
[404803423,1770577858893,-306.468837,0.00044109,120]
[404803424,1770577858902,-151.0,0.00044109,120]
[404803425,1770577858911,-306.468837,0.00044109,120]
[404803426,1770577858920,-151.0,0.00044109,120]
[404803427,1770577858930,-151.0,0.00044109,120]
[404803428,1770577858939,-306.468837,0.00044109,120]
[404803429,1770577858948,-151.0,0.00044109,120]
[404803430,1770577858957,-358.054637,0.00044109,120]
[404803431,1770577858968,-358.054637,0.00044109,120]
[404803432,1770577858977,-358.054637,0.00044109,120]
[404803433,1770577858986,-358.054637,0.00044109,120]
[404803434,1770577858995,-151.0,0.00044109,120]
[404803435,1770577859004,-151.0,0.00044109,120]
[404803436,1770577859013,-274.978908,0.00044109,120]
[404803437,1770577859023,-152.5711,0.00044109,120]
[404803438,1770577859032,-152.5711,0.00044109,120]
[404803439,1770577859041,-152.5711,0.00044109,120]
[404803440,1770577859050,-152.5711,0.00044109,120]
[404803441,1770577859061,-16969.85,0.00044109,120]
[404803442,1770577859070,-16969.85,0.00044109,120]
[404803443,1770577859080,-16969.85,0.00044109,120]
[404803444,1770577859090,-16969.85,0.00044109,120]
[404803445,1770577859099,-16969.85,0.00044109,120]
[404803446,1770577859109,-16969.85,0.00044109,120]
[404803447,1770577859118,-16969.85,0.00044109,120]
[404803448,1770577859127,-16969.85,0.00044109,120]
[404803449,1770577859137,-16969.85,0.00044109,120]
[404803450,1770577859284,-16969.85,0.00044109,120]
[404803451,1770577859296,-16969.85,0.00044109,120]
[404803452,1770577859307,-16969.85,0.00044109,120]
[404803453,1770577859317,-16969.85,0.00044109,120]
[404803454,1770577859327,-16969.85,0.00044109,120]
[404803455,1770577859338,-16969.85,0.00044109,120]
[404803456,1770577859350,-16969.85,0.00044109,120]
[404803457,1770577859362,-16969.85,0.00044109,120]
[404803458,1770577859372,-16969.85,0.00044109,120]
[404803459,1770577859382,-16969.85,0.00044109,120]
[404803460,1770577859393,-16969.85,0.00044109,120]
[404803461,1770577859403,-16969.85,0.00044109,120]
[404803462,1770577859414,-16969.85,0.00044109,120]
[404803463,1770577859424,-16969.85,0.00044109,120]
[404803464,1770577859434,-16969.99112704,0.00044109,120]
[404803465,1770577859444,-418.6440012,0.00044109,120]
[404803466,1770577859454,-272.64735302,0.00044144,19]
[404803467,1770577859464,-209.6,0.00044145,120]
[404803468,1770577859474,-163.02793945,0.00044145,120]
[404803469,1770577859483,-163.02793945,0.00044145,120]
[404803470,1770577859493,-163.02,0.00044145,120]
[404803471,1770577859503,-202.02,0.00044145,120]
[404803472,1770577859512,-193.58,0.00044145,120]
[404803473,1770577859522,-7764.70210826,0.00044145,2]
[404803474,1770577859531,-361.22978657,0.00044145,2]
[404803475,1770577859541,-217.8175496,0.00044145,15]
[404803476,1770577859551,-188.3329543,0.00044145,120]
[404803477,1770577859561,-548.21266263,0.00044145,2]
[404803478,1770577859571,-840.0,0.00044151,60]
[404803479,1770577859583,-840.0,0.00044151,60]
[404803480,1770577859593,-840.0,0.00044151,60]
[404803481,1770577859603,-840.0,0.00044151,60]
[404803482,1770577859612,-840.0,0.00044151,60]
[404803483,1770577859621,-836.0,0.00044151,30]
[404803484,1770577859631,-836.0,0.00044151,30]
[404803485,1770577859641,-248.41264527,0.00044153,2]
[404803486,1770577859650,-150.0,0.00044154,30]
[404803487,1770577859660,-502.74917348,0.00044159,2]
[404803488,1770577859670,-20000.0,0.0004416,120]
[404803489,1770577859681,-49944.0,0.00044164,30]
[404803490,1770577859690,-300.0,0.0004417,3]
[404803491,1770577859700,-250.0,0.0004417,3]
[404803492,1770577859709,-451.92475362,0.0004417,3]
[404803493,1770577859719,-301.26028957,0.0004417,3]
[404803494,1770577859729,-500.0,0.00044181,30]
[404803495,1770577859738,-500.0,0.00044181,30]
[404803496,1770577859747,-500.0,0.00044181,30]
[404803497,1770577859758,-500.0,0.00044181,30]
[404803498,1770577859767,-500.0,0.00044181,30]
[404803499,1770577859777,-500.0,0.00044181,30]
[404803500,1770577859787,-500.0,0.00044181,30]
[404803501,1770577859796,-304.12823211,0.00044181,30]
[404803502,1770577859806,-568.69402104,0.0004419,60]
[404803503,1770577859815,-1000.0,0.00044199,120]
[404803504,1770577859825,-150.0,0.000442,29]
[404803505,1770577859835,-253.0,0.000442,45]
[404803506,1770577859844,-240.15,0.000442,75]
[404803507,1770577859854,-704.34942634,0.000442,120]
[404803508,1770577859865,-2000.0,0.000442,7]
[404803509,1770577859874,-151.0,0.00044205,120]
[404803510,1770577859884,-150.0,0.00044208,2]
[404803511,1770577859894,-150.0,0.00044208,2]
[404803512,1770577859903,-4671.45366529,0.00044208,2]
[404803513,1770577859913,-3445.92703626,0.00044208,2]
[404803514,1770577859923,-150.0,0.00044208,2]
[404803515,1770577859932,-13413.59595424,0.00044208,2]
[404803516,1770577859941,-13244.7065267,0.00044211,2]
[404803517,1770577859950,-360.8000001,0.00044211,2]
[404803518,1770577859960,-205.41387577,0.00044234,37]
[404803519,1770577859970,-184.95855719,0.00044235,7]
[404803520,1770577859980,-184.95855719,0.00044235,7]